bitfinex-derivatives/quotes_BTCF0:USTF0_20260111
["timestamp","ask_amount","ask_price","bid_price","bid_amount"]
[1768173972047,0.02048574,90850.0,90830.0,0.15554385]
[1768173972247,0.02048574,90848.0,90829.0,0.011025]
[1768173972552,0.00946374,90848.0,90829.0,0.011025]
[1768173972946,0.02048574,90848.0,90829.0,0.011025]
[1768173973141,0.00946374,90847.0,90829.0,0.011025]
[1768173974042,0.00946374,90847.0,90830.0,0.15554385]
[1768173974443,0.00946374,90847.0,90831.0,0.011024]
[1768173975144,0.00946374,90847.0,90833.0,0.011024]
[1768173975350,0.00946374,90847.0,90835.0,0.011024]
[1768173975646,0.00946374,90853.0,90840.0,0.011023]
[1768173975854,0.011021,90857.0,90840.0,0.011023]
[1768173976154,0.00946374,90864.0,90840.0,0.01876639]
[1768173976347,0.011021,90860.0,90842.0,0.011023]
[1768173976649,0.00946374,90862.0,90844.0,0.011023]
[1768173976841,0.00946374,90860.0,90844.0,0.011023]
[1768173977043,0.00946374,90860.0,90841.0,0.011023]
[1768173977647,0.00946374,90860.0,90845.0,0.011023]
[1768173978051,0.01102,90865.0,90841.0,0.00215952]
[1768173978243,0.01102,90865.0,90850.0,0.15554385]
[1768173978646,0.01102,90865.0,90846.0,0.00215952]
[1768173978848,0.02048374,90865.0,90850.0,0.15554385]
[1768173979550,0.10505911,90872.0,90854.0,0.011021]
[1768173979756,0.00946374,90872.0,90851.0,0.011022]
[1768173980238,0.00946374,90872.0,90860.0,0.15554385]
[1768173980442,0.01102,90871.0,90854.0,0.011022]
[1768173981851,0.01102,90869.0,90854.0,0.011022]
[1768173982059,0.01102,90867.0,90850.0,0.15554385]
[1768173982244,0.011021,90863.0,90849.0,0.09368]
[1768173982943,0.02048374,90866.0,90849.0,0.104702]
[1768173984461,0.00946374,90866.0,90855.0,0.011021]
[1768173985760,0.00946374,90866.0,90850.0,0.15554385]
[1768173986754,0.00946374,90866.0,90851.0,0.011022]
[1768173986957,0.00946374,90866.0,90853.0,0.011022]
[1768173987163,0.00946374,90866.0,90850.0,0.16656585]
[1768173987348,0.00946374,90866.0,90852.0,0.011022]
[1768173987656,0.01102,90865.0,90850.0,0.15554385]
[1768173990162,0.01102,90865.0,90851.0,0.011022]
[1768173991159,0.09559537,90893.0,90863.0,0.01102]
[1768173991360,0.00946374,90895.0,90878.0,0.15554385]
[1768173991659,0.00946374,90895.0,90879.0,0.011019]
[1768173991959,0.10505911,90895.0,90881.0,0.011018]
[1768173992160,0.11607611,90895.0,90881.0,0.011018]
[1768173992860,5.7e-07,90888.0,90884.0,0.011018]
[1768173993354,5.7e-07,90888.0,90872.0,0.011019]
[1768173993561,0.00946431,90888.0,90877.0,0.011019]
[1768173994148,0.00946431,90888.0,90864.0,0.01355493]
[1768173994149,0.00962262,90881.0,90840.0,0.01897051]
[1768173994358,0.00962262,90862.0,90844.0,0.09368]
[1768173994859,0.00962262,90862.0,90844.0,0.104703]
[1768173996059,0.00962262,90862.0,90844.0,0.09368]
[1768173996252,0.011021,90861.0,90844.0,0.09368]
[1768173996456,0.00962262,90860.0,90844.0,0.09368]
[1768173998558,0.02064362,90859.0,90840.0,0.01897051]
[1768173998863,0.00962262,90858.0,90841.0,0.09368]
[1768174000062,0.00962262,90858.0,90842.0,0.011023]
[1768174005567,0.00962262,90858.0,90844.0,0.011023]
[1768174006870,0.00962262,90858.0,90846.0,0.011023]
[1768174007965,0.00962262,90858.0,90841.0,0.09368]
[1768174008578,0.00962262,90863.0,90841.0,0.09368]
[1768174008781,0.00962262,90863.0,90849.0,0.011022]
[1768174009273,0.01102,90870.0,90847.0,0.00224538]
[1768174009476,0.09368,90870.0,90850.0,0.00224538]
[1768174009663,0.1047,90870.0,90854.0,0.011022]
[1768174009864,0.01102,90868.0,90854.0,0.011022]
[1768174012975,0.01102,90868.0,90852.0,0.011022]
[1768174013874,0.01102,90868.0,90853.0,0.011022]
[1768174016271,0.11432262,90870.0,90855.0,0.011021]
[1768174016478,0.011019,90873.0,90853.0,0.00223369]
[1768174016776,0.011019,90872.0,90853.0,0.00223369]
[1768174018472,0.011019,90872.0,90857.0,0.011021]
[1768174018869,0.02064162,90872.0,90857.0,0.011021]
[1768174019069,0.02064162,90872.0,90853.0,0.00223369]
[1768174019265,0.00962262,90872.0,90853.0,0.00223369]
[1768174019470,0.09368,90877.0,90853.0,0.00223369]
[1768174019676,0.09368,90877.0,90863.0,0.01102]
[1768174020278,0.11432162,90877.0,90863.0,0.01102]
[1768174020582,0.00962262,90874.0,90861.0,0.011021]
[1768174023585,0.011019,90873.0,90851.0,0.0022313]
[1768174023891,0.009215,90872.0,90851.0,0.0022313]
[1768174025390,0.01102,90871.0,90851.0,0.0022313]
[1768174025580,0.020235,90871.0,90856.0,0.011021]
[1768174025782,0.009215,90871.0,90858.0,0.011021]
[1768174028897,0.009215,90871.0,90862.0,0.011021]
[1768174030391,0.009215,90871.0,90863.0,0.01102]
[1768174030895,0.00918393,90876.0,90856.0,0.011021]
[1768174031097,0.00918393,90871.0,90860.0,0.011021]
[1768174031291,0.00918393,90871.0,90851.0,0.011022]
[1768174031600,0.00918393,90871.0,90862.0,0.01102]
[1768174031789,0.00918393,90871.0,90861.0,0.011021]
[1768174034610,0.00918393,90871.0,90862.0,0.01102]
[1768174039699,0.00918393,90890.0,90878.0,0.011019]
[1768174040005,0.00918393,90890.0,90870.0,0.09364]
[1768174040393,0.00918393,90890.0,90886.0,0.011018]
[1768174040709,9.3e-07,90890.0,90887.0,0.011017]
[1768174041302,9.3e-07,90890.0,90883.0,0.011018]
[1768174041498,9.3e-07,90890.0,90884.0,0.011018]
[1768174042410,0.09364,90895.0,90884.0,0.011018]
[1768174043304,0.00918393,90896.0,90884.0,0.011018]
[1768174043493,0.10003628,90896.0,90884.0,0.011018]
[1768174043694,0.00918393,90895.0,90888.0,0.011017]
[1768174043894,0.00550028,90905.0,90896.0,0.011016]
[1768174044193,0.00550028,90905.0,90893.0,0.011017]
[1768174044501,0.00550028,90905.0,90895.0,0.011017]
[1768174044808,0.09635263,90905.0,90892.0,0.011017]
[1768174045903,0.09364,90907.0,90884.0,0.104658]
[1768174045904,0.00918393,90915.0,90897.0,0.00126585]
[1768174046110,0.00918393,90915.0,90906.0,0.011015]
[1768174046293,0.00918393,90915.0,90904.0,0.011015]
[1768174046498,0.10003628,90915.0,90904.0,0.011015]
[1768174047103,0.10003628,90915.0,90903.0,0.011016]
[1768174047411,0.09085235,90913.0,90903.0,0.011016]
[1768174047796,0.09085235,90913.0,90900.0,0.011016]
[1768174048002,0.10003628,90913.0,90900.0,0.011016]
[1768174048200,0.09085235,90901.0,90891.0,0.011017]
[1768174048396,0.10003628,90898.0,90877.0,0.00909412]
[1768174048706,0.10003628,90898.0,90888.0,0.011017]
[1768174048906,0.10003628,90898.0,90889.0,0.09364]
[1768174049307,0.00918393,90898.0,90888.0,0.011017]
[1768174049507,0.00918393,90898.0,90878.0,0.00223]
[1768174049508,0.00918393,90898.0,90889.0,0.09364]
[1768174049710,0.00918393,90898.0,90887.0,0.011018]
[1768174049907,0.00918393,90898.0,90888.0,0.09364]
[1768174050110,0.00918393,90898.0,90889.0,0.09364]
[1768174050505,0.00918393,90893.0,90877.0,0.09364]
[1768174050705,0.10003628,90886.0,90875.0,0.09364]
[1768174051010,0.00918393,90886.0,90875.0,0.09364]
[1768174051209,0.09085235,90890.0,90879.0,0.011019]
[1768174053013,0.09085235,90890.0,90881.0,0.011018]
[1768174053214,0.00918393,90892.0,90885.0,0.011018]
[1768174053404,0.00918393,90892.0,90882.0,0.011018]
[1768174053714,0.00918393,90892.0,90875.0,0.09364]
[1768174054109,0.00918393,90892.0,90882.0,0.011018]
[1768174054410,0.00918393,90892.0,90884.0,0.011018]
[1768174054610,0.00918393,90892.0,90880.0,0.011018]
[1768174054806,0.10212038,90898.0,90877.0,0.00129444]
[1768174055014,0.10212038,90898.0,90886.0,0.011018]
[1768174055311,0.00917848,90898.0,90886.0,0.011018]
[1768174055711,0.00917848,90894.0,90846.0,0.1075008]
[1768174055912,0.0929419,90833.0,90791.0,0.00919615]
[1768174056213,0.011026,90820.0,90801.0,0.09050628]
[1768174056400,0.00917848,90819.0,90799.0,0.11002068]
[1768174056699,0.011026,90817.0,90795.0,0.09050628]
[1768174057116,0.011027,90814.0,90796.0,0.11002068]
[1768174057511,0.011027,90811.0,90796.0,0.11002068]
[1768174057718,0.08823268,90818.0,90796.0,0.11002068]
[1768174057719,0.011026,90816.0,90796.0,0.11002068]
[1768174058013,0.011027,90812.0,90796.0,0.11002068]
[1768174058210,0.011026,90817.0,90796.0,0.11002068]
[1768174058513,0.08823268,90818.0,90796.0,0.11002068]
[1768174058514,0.011027,90814.0,90796.0,0.11002068]
[1768174058813,9.417e-05,90818.0,90798.0,0.00919615]
[1768174059007,0.09364,90817.0,90803.0,0.09970243]
[1768174059217,0.09364,90816.0,90805.0,0.00919615]
[1768174059399,0.09364,90816.0,90806.0,0.00919615]
[1768174060708,9.417e-05,90818.0,90806.0,0.00919615]
[1768174060914,0.09364,90817.0,90807.0,0.00919615]
[1768174063012,0.09364,90817.0,90801.0,0.00919615]
[1768174063215,0.09364,90817.0,90801.0,0.09970243]
[1768174065604,9.417e-05,90818.0,90801.0,0.10153428]
[1768174065808,0.09377417,90818.0,90803.0,0.00919615]
[1768174066519,9.417e-05,90818.0,90803.0,0.09970243]
[1768174066817,9.417e-05,90818.0,90806.0,0.11072943]
[1768174067018,9.417e-05,90818.0,90806.0,0.09970243]
[1768174067411,9.417e-05,90818.0,90806.0,0.00919615]
[1768174071720,0.00242217,90828.0,90814.0,0.09050628]
[1768174072115,0.09368,90827.0,90814.0,0.09050628]
[1768174072318,0.09368,90827.0,90813.0,0.00919615]
[1768174073031,0.09368,90827.0,90810.0,0.10153328]
[1768174073319,0.011025,90823.0,90805.0,0.09050628]
[1768174073528,0.011025,90823.0,90806.0,0.011027]
[1768174073722,0.0929419,90824.0,90808.0,0.011027]
[1768174074024,0.011025,90826.0,90808.0,0.011027]
[1768174074416,0.09368,90825.0,90808.0,0.011027]
[1768174074612,0.011025,90826.0,90808.0,0.011027]
[1768174074919,0.09368,90824.0,90808.0,0.011027]
[1768174076229,0.09368,90823.0,90808.0,0.011027]
[1768174076819,0.01160065,90828.0,90808.0,0.09050628]
[1768174077018,0.09368,90827.0,90816.0,0.09970243]
[1768174077220,0.00242217,90828.0,90817.0,0.10153228]
[1768174077423,0.09368,90827.0,90817.0,0.10153228]
[1768174077623,0.00242217,90828.0,90817.0,0.10153228]
[1768174077930,0.00242217,90828.0,90817.0,0.11072843]
[1768174078933,0.00242217,90828.0,90819.0,0.011026]
[1768174079432,0.09368,90830.0,90817.0,0.09970243]
[1768174079731,0.7128,90847.0,90803.0,0.09368]
[1768174079732,0.09368,90831.0,90822.0,0.10153128]
[1768174079930,0.09368,90831.0,90822.0,0.011025]
[1768174080635,0.09368,90831.0,90819.0,0.011026]
[1768174081730,0.09368,90831.0,90821.0,0.011026]
[1768174081929,0.011023,90846.0,90812.0,0.011027]
[1768174081930,0.09368,90838.0,90827.0,0.09970243]
[1768174082130,0.09368,90843.0,90831.0,0.011024]
[1768174083936,0.09368,90842.0,90831.0,0.011024]
[1768174084938,0.09368,90842.0,90833.0,0.011024]
[1768174085738,0.11022785,90847.0,90833.0,0.011024]
[1768174085938,0.12414826,90846.0,90830.0,0.011024]
[1768174086138,0.03046826,90845.0,90830.0,0.011024]
[1768174086341,0.03046826,90844.0,90830.0,0.011024]
[1768174086539,0.09368,90846.0,90830.0,0.011024]
[1768174086740,0.03046285,90845.0,90830.0,0.011024]
[1768174087038,0.03046285,90844.0,90832.0,0.011024]
[1768174087222,0.09368,90846.0,90832.0,0.011024]
[1768174087223,0.03046285,90843.0,90832.0,0.011024]
[1768174087427,0.03046285,90842.0,90832.0,0.011024]
[1768174087640,0.09368,90846.0,90832.0,0.011024]
[1768174087840,0.03156713,90845.0,90832.0,0.011024]
[1768174088041,0.03156713,90844.0,90832.0,0.011024]
[1768174088231,0.03156713,90843.0,90832.0,0.011024]
[1768174088432,0.09368,90846.0,90832.0,0.011024]
[1768174088433,0.03156713,90842.0,90832.0,0.011024]
[1768174088641,0.011023,90845.0,90832.0,0.011024]
[1768174088830,0.03156488,90844.0,90832.0,0.011024]
[1768174089125,0.03156488,90843.0,90832.0,0.011024]
[1768174089325,0.011023,90845.0,90832.0,0.011024]
[1768174089537,0.03156255,90844.0,90832.0,0.011024]
[1768174089738,0.03156255,90843.0,90832.0,0.011024]
[1768174089939,0.03156255,90842.0,90832.0,0.011024]
[1768174090141,0.03156255,90841.0,90832.0,0.011024]
[1768174090439,0.011023,90845.0,90832.0,0.011024]
[1768174090739,0.03156095,90844.0,90832.0,0.011024]
[1768174090938,0.03156095,90843.0,90832.0,0.011024]
[1768174091139,0.03156095,90842.0,90832.0,0.011024]
[1768174091343,0.011023,90845.0,90832.0,0.011024]
[1768174091541,0.03155935,90844.0,90832.0,0.011024]
[1768174091741,0.03155935,90843.0,90832.0,0.011024]
[1768174091945,0.011023,90845.0,90832.0,0.011024]
[1768174091946,0.03155935,90842.0,90832.0,0.011024]
[1768174092135,0.011023,90845.0,90832.0,0.011024]
[1768174092335,0.03155971,90844.0,90832.0,0.011024]
[1768174092536,0.03155971,90843.0,90832.0,0.011024]
[1768174092736,0.03155971,90842.0,90832.0,0.011024]
[1768174092941,0.011023,90845.0,90832.0,0.011024]
[1768174093244,0.0315588,90844.0,90832.0,0.011024]
[1768174093442,0.0315588,90843.0,90832.0,0.011024]
[1768174093633,0.0315588,90842.0,90832.0,0.011024]
[1768174093834,0.011023,90845.0,90832.0,0.011024]
[1768174094034,0.03155908,90844.0,90832.0,0.011024]
[1768174094336,0.03155908,90843.0,90832.0,0.011024]
[1768174094536,0.03155908,90842.0,90832.0,0.011024]
[1768174094844,0.10965881,90845.0,90832.0,0.011024]
[1768174095045,0.03156003,90844.0,90832.0,0.011024]
[1768174095242,0.10965881,90845.0,90827.0,0.00919615]
[1768174095243,0.03156003,90843.0,90827.0,0.10579416]
[1768174095542,0.00917848,90847.0,90827.0,0.10579416]
[1768174095543,0.09368,90842.0,90836.0,0.011024]
[1768174096242,0.09368,90842.0,90834.0,0.011024]
[1768174096745,0.10781429,90847.0,90834.0,0.011024]
[1768174096956,0.09368,90846.0,90834.0,0.011024]
[1768174097246,0.19231581,90846.0,90834.0,0.011024]
[1768174099341,0.09863581,90849.0,90836.0,0.011024]
[1768174099546,0.09368,90848.0,90836.0,0.011024]
[1768174099737,0.10850688,90842.0,90820.0,0.00939062]
[1768174099939,0.10965881,90840.0,90820.0,0.00939062]
[1768174100137,0.10965881,90840.0,90820.0,0.10598863]
[1768174100645,0.10965881,90840.0,90821.0,0.11009457]
[1768174100843,0.09863581,90840.0,90827.0,0.011025]
[1768174102852,0.09863581,90840.0,90820.0,0.2614014]
[1768174102853,0.09863581,90840.0,90829.0,0.011025]
[1768174103448,0.09863581,90840.0,90826.0,0.011025]
[1768174104056,0.10965881,90840.0,90826.0,0.011025]
[1768174104438,0.011023,90840.0,90826.0,0.011025]
[1768174104643,0.10850688,90842.0,90830.0,0.011024]
[1768174107354,0.03140723,90841.0,90830.0,0.011024]
[1768174107549,0.03140723,90840.0,90830.0,0.011024]
[1768174107746,0.03140723,90839.0,90830.0,0.011024]
[1768174107948,0.00987107,90842.0,90830.0,0.011024]
[1768174108251,0.03140723,90841.0,90830.0,0.011024]
[1768174108450,0.03140723,90840.0,90830.0,0.011024]
[1768174108651,0.03140723,90839.0,90830.0,0.011024]
[1768174108854,0.03140723,90838.0,90830.0,0.011024]
[1768174109045,0.10850688,90842.0,90830.0,0.011024]
[1768174109246,0.13004922,90841.0,90830.0,0.011024]
[1768174109459,0.03141341,90840.0,90830.0,0.011024]
[1768174110257,0.09863581,90841.0,90830.0,0.011024]
[1768174117247,0.09863581,90841.0,90831.0,0.011024]
[1768174119557,0.10781519,90841.0,90831.0,0.011024]
[1768174120765,0.10781519,90841.0,90832.0,0.011024]
[1768174131667,0.10781519,90841.0,90834.0,0.011024]
[1768174131868,0.10781519,90841.0,90832.0,0.011024]
[1768174137062,0.10781519,90841.0,90830.0,0.011024]
[1768174140075,0.10781519,90841.0,90832.0,0.011024]
[1768174142479,0.10692868,90839.0,90832.0,0.011024]
[1768174143374,0.10692868,90839.0,90834.0,0.011024]
[1768174143570,0.10692868,90839.0,90832.0,0.011024]
[1768174143764,0.10692868,90835.0,90821.0,0.11008911]
[1768174143969,0.10692868,90835.0,90816.0,0.09672321]
[1768174143970,0.10692868,90835.0,90827.0,0.011025]
[1768174144172,0.00917938,90835.0,90827.0,0.011025]
[1768174144374,0.09695789,90838.0,90827.0,0.011025]
[1768174144571,0.10602443,90832.0,90811.0,0.09033061]
[1768174144780,0.00906654,90827.0,90816.0,0.011026]
[1768174145084,0.09695789,90826.0,90816.0,0.011026]
[1768174146981,0.09695789,90826.0,90818.0,0.011026]
[1768174147682,0.09695789,90818.0,90803.0,0.09368]
[1768174147875,0.011024,90838.0,90796.0,0.00921121]
[1768174147876,0.10602443,90810.0,90796.0,0.09368]
[1768174148576,0.10602443,90806.0,90795.0,0.01845044]
[1768174148780,0.10602443,90804.0,90789.0,0.09368]
[1768174148982,0.09695789,90802.0,90789.0,0.10815773]
[1768174149183,0.09695789,90802.0,90790.0,0.1101273]
[1768174149989,0.09695789,90802.0,90792.0,0.011029]
[1768174151486,0.10871532,90802.0,90792.0,0.011029]
[1768174151686,0.09676184,90800.0,90789.0,0.10815773]
[1768174152072,0.01175743,90797.0,90789.0,0.01447773]
[1768174152386,0.011027,90807.0,90781.0,0.09368]
[1768174152387,0.10851927,90795.0,90781.0,0.09368]
[1768174152985,2.7e-07,90795.0,90781.0,0.10880268]
[1768174153287,2.7e-07,90795.0,90788.0,0.01103]
[1768174153483,2.7e-07,90795.0,90781.0,0.10880268]
[1768174153974,2.7e-07,90795.0,90784.0,0.01103]
[1768174154575,2.7e-07,90795.0,90781.0,0.10880268]
[1768174154785,0.011029,90795.0,90781.0,0.01512268]
[1768174154984,0.09676184,90795.0,90774.0,0.104711]
[1768174155184,0.10779184,90782.0,90769.0,0.05]
[1768174155483,0.01175743,90786.0,90769.0,0.05]
[1768174155484,0.09676184,90780.0,90769.0,0.05]
[1768174155690,0.09676184,90780.0,90769.0,0.0645298]
[1768174156075,0.011031,90779.0,90769.0,0.0645298]
[1768174156272,0.011031,90779.0,90769.0,0.05]
[1768174156584,0.09676184,90780.0,90760.0,0.011033]
[1768174156585,0.06816682,90773.0,90761.0,0.01468056]
[1768174156789,0.104751,90780.0,90756.0,0.01189178]
[1768174156790,0.09372,90780.0,90756.0,0.01189178]
[1768174156988,0.09372,90780.0,90764.0,0.011032]
[1768174157487,0.00010253,90779.0,90764.0,0.011032]
[1768174157883,0.00010253,90779.0,90761.0,0.01467019]
[1768174158084,0.09372,90780.0,90771.0,0.011032]
[1768174158085,5.3e-07,90780.0,90771.0,0.011032]
[1768174158278,5.3e-07,90780.0,90768.0,0.011032]
[1768174158478,5.3e-07,90780.0,90770.0,0.011032]
[1768174159175,5.3e-07,90780.0,90762.0,0.01189178]
[1768174160388,5.3e-07,90780.0,90770.0,0.011032]
[1768174162480,5.3e-07,90780.0,90767.0,0.011032]
[1768174163676,5.3e-07,90780.0,90762.0,0.01189178]
[1768174163677,5.3e-07,90780.0,90769.0,0.011032]
[1768174165682,0.011029,90790.0,90774.0,0.02292278]
[1768174165895,0.011029,90790.0,90771.0,0.0906083]
[1768174165896,0.09372,90789.0,90775.0,0.01189178]
[1768174166090,0.00550755,90785.0,90768.0,0.01189178]
[1768174166387,0.011031,90780.0,90758.0,0.01189178]
[1768174166578,0.011031,90780.0,90757.0,0.10865545]
[1768174166579,0.09372,90779.0,90763.0,0.01189178]
[1768174166982,0.09372,90779.0,90764.0,0.011032]
[1768174167190,0.09372,90779.0,90766.0,0.011032]
[1768174168597,0.09372,90779.0,90764.0,0.01189178]
[1768174169198,0.09372,90779.0,90765.0,0.011032]
[1768174170690,0.09372,90779.0,90764.0,0.01189178]
[1768174172497,0.09372,90779.0,90767.0,0.011032]
[1768174174301,0.011031,90780.0,90767.0,0.011032]
[1768174174600,0.09372,90779.0,90768.0,0.011032]
[1768174176898,0.09376,90778.0,90770.0,0.011032]
[1768174177102,0.09376,90778.0,90773.0,0.011031]
[1768174178095,0.01103,90784.0,90773.0,0.011031]
[1768174178296,0.09376,90777.0,90773.0,0.011031]
[1768174178893,0.09376,90777.0,90770.0,0.011032]
[1768174179200,0.01103,90784.0,90770.0,0.011032]
[1768174179390,0.09376,90783.0,90770.0,0.011032]
[1768174180401,0.09376,90783.0,90772.0,0.011032]
[1768174180899,0.09376,90782.0,90772.0,0.011032]
[1768174181787,0.01653755,90785.0,90772.0,0.011032]
[1768174181990,0.09376,90784.0,90772.0,0.011032]
[1768174182995,0.01103,90783.0,90772.0,0.011032]
[1768174183593,0.09376,90782.0,90772.0,0.011032]
[1768174184104,0.01103,90783.0,90772.0,0.011032]
[1768174184301,0.1238388,90782.0,90772.0,0.011032]
[1768174184602,0.1238388,90781.0,90772.0,0.011032]
[1768174184800,0.09376,90781.0,90772.0,0.011032]
[1768174185394,0.03009291,90780.0,90772.0,0.011032]
[1768174185599,0.09376,90781.0,90772.0,0.011032]
[1768174185799,0.03009291,90780.0,90772.0,0.011032]
[1768174186002,0.09376,90781.0,90772.0,0.011032]
[1768174186202,0.03009291,90780.0,90772.0,0.011032]
[1768174186406,0.03009291,90779.0,90772.0,0.011032]
[1768174186596,0.09376,90779.0,90772.0,0.011032]
[1768174186996,0.09376,90779.0,90769.0,0.011032]
[1768174187504,0.09376,90779.0,90770.0,0.011032]
[1768174188002,5.5e-07,90785.0,90777.0,0.02666983]
[1768174188200,5.5e-07,90789.0,90786.0,0.01103]
[1768174188395,5.5e-07,90789.0,90784.0,0.02666983]
[1768174188396,0.09376,90791.0,90787.0,0.01103]
[1768174188997,0.09376,90791.0,90777.0,0.12363541]
[1768174189906,0.09376,90791.0,90785.0,0.01103]
[1768174190108,0.00242297,90798.0,90785.0,0.01103]
[1768174190293,0.00242297,90798.0,90786.0,0.01103]
[1768174190294,0.09376,90797.0,90786.0,0.01103]
[1768174190498,0.09376,90797.0,90779.0,0.12363541]
[1768174191098,0.09376,90797.0,90784.0,0.01103]
[1768174192218,0.01345097,90798.0,90784.0,0.01103]
[1768174192409,0.09376,90797.0,90784.0,0.01103]
[1768174193506,0.00242297,90798.0,90784.0,0.01103]
[1768174193810,0.09376,90796.0,90784.0,0.01103]
[1768174194513,0.09376,90795.0,90784.0,0.01103]
[1768174194708,0.09376,90795.0,90786.0,0.01103]
[1768174195012,0.09376,90795.0,90779.0,0.02666983]
[1768174195209,0.09376,90795.0,90784.0,0.01103]
[1768174197114,0.09376,90795.0,90785.0,0.01103]
[1768174197510,0.00242297,90798.0,90785.0,0.01103]
[1768174197707,0.09372,90794.0,90785.0,0.01103]
[1768174197913,0.00242297,90798.0,90785.0,0.01103]
[1768174197914,0.09372,90793.0,90785.0,0.01103]
[1768174198214,0.09372,90793.0,90779.0,0.02666983]
[1768174198417,0.011027,90807.0,90793.0,0.03769883]
[1768174198613,0.09372,90807.0,90794.0,0.12363541]
[1768174198818,0.09372,90807.0,90795.0,0.011029]
[1768174199019,0.09372,90807.0,90794.0,0.02666983]
[1768174199206,0.09372,90807.0,90792.0,0.011029]
[1768174200013,0.09372,90807.0,90794.0,0.011029]
[1768174200413,0.09372,90807.0,90792.0,0.02666983]
[1768174200706,0.02508785,90801.0,90790.0,0.011029]
[1768174200916,0.02508785,90801.0,90781.0,0.13466541]
[1768174201111,0.09372,90806.0,90780.0,0.11013155]
[1768174201112,0.02508785,90799.0,90780.0,0.11013155]
[1768174201415,0.02508785,90799.0,90777.0,0.09696558]
[1768174201616,0.09372,90806.0,90790.0,0.011029]
[1768174201922,0.104748,90805.0,90791.0,0.011029]
[1768174202915,0.104748,90805.0,90787.0,0.12363541]
[1768174202916,0.03611485,90808.0,90793.0,0.011029]
[1768174203115,0.011027,90806.0,90787.0,0.02666983]
[1768174203618,0.11880785,90807.0,90794.0,0.011029]
[1768174203925,0.12983485,90807.0,90793.0,0.011029]
[1768174204522,0.11880785,90807.0,90787.0,0.02666983]
[1768174204824,0.011027,90806.0,90787.0,0.02666983]
[1768174206113,0.09372,90805.0,90787.0,0.02666983]
[1768174206513,0.09372,90805.0,90792.0,0.011029]
[1768174207822,0.011027,90806.0,90792.0,0.011029]
[1768174208014,0.011027,90806.0,90787.0,0.02666983]
[1768174208015,0.03611485,90807.0,90787.0,0.02666983]
[1768174208220,0.09372,90805.0,90787.0,0.02666983]
[1768174208424,0.104748,90805.0,90787.0,0.02666983]
[1768174209417,0.104748,90805.0,90789.0,0.011029]
[1768174210019,0.011028,90803.0,90789.0,0.011029]
[1768174210224,0.01103,90789.0,90776.0,0.011031]
[1768174210422,0.03898281,90783.0,90765.0,0.01654076]
[1768174210719,0.011031,90775.0,90762.0,0.011033]
[1768174210910,0.15559031,90770.0,90759.0,0.011033]
[1768174211111,0.15559031,90770.0,90751.0,0.09372]
[1768174211317,0.011032,90768.0,90754.0,0.011034]
[1768174211517,0.16662331,90764.0,90751.0,0.10990784]
[1768174211715,0.19457312,90764.0,90751.0,0.01618784]
[1768174211916,0.011034,90753.0,90724.0,0.09372]
[1768174212126,0.03898281,90739.0,90716.0,0.09372]
[1768174212424,0.03898281,90739.0,90719.0,0.03812821]
[1768174212616,0.03898281,90739.0,90729.0,0.011037]
[1768174212925,0.03898281,90739.0,90726.0,0.011037]
[1768174213130,0.03898281,90739.0,90726.0,0.01574658]
[1768174213426,0.00011853,90738.0,90721.0,0.011038]
[1768174213617,0.00011853,90738.0,90725.0,0.02148093]
[1768174214017,0.00011853,90738.0,90725.0,0.00551119]
[1768174214330,0.011036,90737.0,90725.0,0.00551119]
[1768174214622,0.011036,90734.0,90716.0,0.09372]
[1768174214814,0.03828193,90738.0,90716.0,0.13184821]
[1768174215216,0.03828193,90738.0,90716.0,0.14770874]
[1768174215613,0.00011853,90738.0,90717.0,0.13672907]
[1768174215818,0.00011853,90738.0,90720.0,0.03812821]
[1768174216325,0.09376,90750.0,90738.0,0.03812821]
[1768174216526,0.09376,90750.0,90742.0,0.011035]
[1768174217521,0.09376,90753.0,90738.0,0.03812821]
[1768174218228,0.19031536,90760.0,90743.0,0.011035]
[1768174218429,0.09376,90759.0,90743.0,0.011035]
[1768174218929,0.011034,90755.0,90735.0,0.011036]
[1768174219124,0.03782751,90756.0,90737.0,0.011036]
[1768174219526,0.03782751,90756.0,90739.0,0.011035]
[1768174219725,0.03782751,90756.0,90741.0,0.011035]
[1768174222926,0.03782751,90756.0,90743.0,0.011035]
[1768174223132,0.03782751,90756.0,90745.0,0.011035]
[1768174223533,0.03782751,90756.0,90742.0,0.011035]
[1768174223928,0.03782751,90756.0,90744.0,0.011035]
[1768174225241,0.011034,90755.0,90737.0,0.011036]
[1768174225440,0.03898281,90749.0,90728.0,0.03812821]
[1768174225738,0.05001681,90749.0,90728.0,0.03812821]
[1768174225943,0.09376,90748.0,90728.0,0.03812821]
[1768174226239,0.09376,90749.0,90736.0,0.03812821]
[1768174226431,0.011034,90755.0,90740.0,0.011035]
[1768174226631,0.15559031,90760.0,90740.0,0.03812821]
[1768174226632,0.16662331,90760.0,90740.0,0.03812821]
[1768174227044,0.011033,90758.0,90740.0,0.03812821]
[1768174227241,0.011034,90756.0,90734.0,0.13672907]
[1768174227541,0.011034,90756.0,90743.0,0.011035]
[1768174228443,0.011034,90756.0,90740.0,0.011035]
[1768174228844,0.011034,90754.0,90740.0,0.011035]
[1768174229546,0.011033,90757.0,90742.0,0.011035]
[1768174230040,0.011034,90755.0,90742.0,0.011035]
[1768174231143,0.09376,90754.0,90742.0,0.011035]
[1768174231344,0.09376,90754.0,90738.0,0.03812821]
[1768174231643,0.09376,90754.0,90745.0,0.011035]
[1768174232832,0.09376,90754.0,90743.0,0.011035]
[1768174233535,0.09376,90754.0,90745.0,0.011035]
[1768174233735,0.09376,90754.0,90742.0,0.011035]
[1768174235043,0.011034,90756.0,90742.0,0.011035]
[1768174235245,0.09376,90755.0,90742.0,0.011035]
[1768174235946,0.09376,90755.0,90744.0,0.05587924]
[1768174236331,0.15559031,90760.0,90744.0,0.04484424]
[1768174236537,0.09376,90759.0,90751.0,0.05587824]
[1768174236736,0.09376,90759.0,90751.0,0.04484424]
[1768174236932,0.09376,90759.0,90753.0,0.011034]
[1768174238143,0.011032,90766.0,90753.0,0.011034]
[1768174238340,0.09376,90763.0,90753.0,0.011034]
[1768174239441,0.011032,90768.0,90753.0,0.011034]
[1768174239740,0.011032,90766.0,90751.0,0.04484424]
[1768174239940,0.09376,90767.0,90754.0,0.011034]